[Event "December 12 Late 2023"]
[Site "https://www.chess.com"]
[Date "2023.12.12"]
[Round "7"]
[White "Korchmar, Vasiliy"]
[Black "Janaszak, Dawid"]
[Result "0-1"]
[Board "36"]
[TimeControl "180+1"]
[WhiteFideId "24131750"]
[BlackFideId "1119206"]
[WhiteElo "2761"]
[BlackElo "2592"]
[WhiteTeam "RUS"]
[BlackTeam "POL"]
[WhiteClock "0:00:02"]
[BlackClock "0:00:15"]

1. e4 {[%clk 0:02:55]}  c6 {[%clk 0:03:00]} 2. d4 {[%clk 0:02:55]}  d5 {[%clk 0:03:01]} 3. exd5 {[%clk 0:02:56]}  cxd5 {[%clk 0:03:01]} 4. c3 {[%clk 0:02:57]}  Nc6 {[%clk 0:02:59]} 5. Bd3 {[%clk 0:02:57]}  Nf6 {[%clk 0:02:55]} 6. Bf4 {[%clk 0:02:57]}  Bg4 {[%clk 0:02:52]} 7. Qb3 {[%clk 0:02:56]}  Qc8 {[%clk 0:02:53]} 8. Nd2 {[%clk 0:02:56]}  e6 {[%clk 0:02:48]} 9. Ngf3 {[%clk 0:02:56]}  Be7 {[%clk 0:02:47]} 10. O-O {[%clk 0:02:56]}  Bh5 {[%clk 0:02:46]} 11. Rae1 {[%clk 0:02:57]}  Nd7 {[%clk 0:02:30]} 12. c4 {[%clk 0:02:14]}  dxc4 {[%clk 0:02:29]} 13. Bxc4 {[%clk 0:02:09]}  Bxf3 {[%clk 0:02:17]} 14. Qxf3 {[%clk 0:02:06]}  Nxd4 {[%clk 0:01:59]} 15. Qg4 {[%clk 0:02:03]}  Nf5 {[%clk 0:01:34]} 16. Rxe6 {[%clk 0:02:03]}  fxe6 {[%clk 0:01:30]} 17. Bxe6 {[%clk 0:02:04]}  g6 {[%clk 0:01:17]} 18. Nc4 {[%clk 0:01:18]}  Qc6 {[%clk 0:01:06]} 19. Re1 {[%clk 0:00:59]}  Nf6 {[%clk 0:01:02]} 20. Qe2 {[%clk 0:00:55]}  Nd4 {[%clk 0:00:31]} 21. Bf7+ {[%clk 0:00:51]}  Kxf7 {[%clk 0:00:32]} 22. Qxe7+ {[%clk 0:00:52]}  Kg8 {[%clk 0:00:32]} 23. Bh6 {[%clk 0:00:44]}  Nf5 {[%clk 0:00:30]} 24. Qe5 {[%clk 0:00:25]}  Nxh6 {[%clk 0:00:28]} 25. Nd6 {[%clk 0:00:25]}  Rf8 {[%clk 0:00:16]} 26. Qe6+ {[%clk 0:00:22]}  Kg7 {[%clk 0:00:14]} 27. g4 {[%clk 0:00:11]}  Re8 {[%clk 0:00:14]} 28. Nxe8+ {[%clk 0:00:02]}  Rxe8 {[%clk 0:00:15]} 0-1

[Event "December 12 Late 2023"]
[Site "https://www.chess.com"]
[Date "2023.12.12"]
[Round "7"]
[White "Dragomirescu, Robin-Alexandru"]
[Black "Rastbod, Ali"]
[Result "1-0"]
[Board "38"]
[TimeControl "180+1"]
[WhiteFideId "1213849"]
[BlackFideId "12567477"]
[WhiteElo "2579"]
[BlackElo "2743"]
[WhiteTeam "ROU"]
[BlackTeam "IRI"]
[WhiteClock "0:00:12"]
[BlackClock "0:00:15"]

1. b3 {[%clk 0:03:00]}  f5 {[%clk 0:02:53]} 2. Bb2 {[%clk 0:03:01]}  Nf6 {[%clk 0:02:54]} 3. c4 {[%clk 0:02:59]}  g6 {[%clk 0:02:54]} 4. Bxf6 {[%clk 0:02:54]}  exf6 {[%clk 0:02:55]} 5. g3 {[%clk 0:02:50]}  d5 {[%clk 0:02:54]} 6. cxd5 {[%clk 0:02:49]}  Qxd5 {[%clk 0:02:51]} 7. Nf3 {[%clk 0:02:49]}  Bg7 {[%clk 0:02:47]} 8. Nc3 {[%clk 0:02:48]}  Qd6 {[%clk 0:02:47]} 9. Bg2 {[%clk 0:02:45]}  O-O {[%clk 0:02:47]} 10. d4 {[%clk 0:02:45]}  c5 {[%clk 0:02:42]} 11. dxc5 {[%clk 0:02:37]}  Qxc5 {[%clk 0:02:40]} 12. Qd5+ {[%clk 0:02:30]}  Qxd5 {[%clk 0:02:40]} 13. Nxd5 {[%clk 0:02:31]}  Nc6 {[%clk 0:02:41]} 14. O-O {[%clk 0:02:20]}  Rd8 {[%clk 0:02:33]} 15. Rfd1 {[%clk 0:02:16]}  Kf8 {[%clk 0:02:32]} 16. Rac1 {[%clk 0:02:05]}  Rb8 {[%clk 0:02:23]} 17. Nd4 {[%clk 0:01:38]}  Nxd4 {[%clk 0:02:16]} 18. Rxd4 {[%clk 0:01:36]}  Be6 {[%clk 0:02:17]} 19. Nc7 {[%clk 0:01:20]}  Bf7 {[%clk 0:02:13]} 20. Rxd8+ {[%clk 0:01:07]}  Rxd8 {[%clk 0:02:14]} 21. Bxb7 {[%clk 0:01:06]}  Rd2 {[%clk 0:02:13]} 22. Nb5 {[%clk 0:01:02]}  Be8 {[%clk 0:01:51]} 23. Rc8 {[%clk 0:00:46]}  Ke7 {[%clk 0:01:49]} 24. Rc7+ {[%clk 0:00:43]}  Kf8 {[%clk 0:01:45]} 25. a4 {[%clk 0:00:26]}  a5 {[%clk 0:01:39]} 26. Bc6 {[%clk 0:00:24]}  Bf7 {[%clk 0:01:16]} 27. Ra7 {[%clk 0:00:15]}  Bxb3 {[%clk 0:01:10]} 28. Ra8+ {[%clk 0:00:13]}  Kf7 {[%clk 0:01:08]} 29. Ra7+ {[%clk 0:00:13]}  Kf8 {[%clk 0:01:08]} 30. Rxa5 {[%clk 0:00:14]}  Rxe2 {[%clk 0:00:33]} 31. Ra8+ {[%clk 0:00:14]}  Kf7 {[%clk 0:00:32]} 32. Ra7+ {[%clk 0:00:15]}  Kf8 {[%clk 0:00:32]} 33. a5 {[%clk 0:00:14]}  Bc4 {[%clk 0:00:28]} 34. Ra8+ {[%clk 0:00:12]}  Ke7 {[%clk 0:00:29]} 35. Re8+ {[%clk 0:00:10]}  Kf7 {[%clk 0:00:27]} 36. Rxe2 {[%clk 0:00:10]}  Bxe2 {[%clk 0:00:25]} 37. a6 {[%clk 0:00:10]}  Bxb5 {[%clk 0:00:16]} 38. Bxb5 {[%clk 0:00:11]}  Bf8 {[%clk 0:00:15]} 39. a7 {[%clk 0:00:12]} 1-0

[Event "December 12 Late 2023"]
[Site "https://www.chess.com"]
[Date "2023.12.12"]
[Round "7"]
[White "Bolourchifard, Farzad"]
[Black "Roberson, Peter T"]
[Result "1-0"]
[Board "39"]
[TimeControl "180+1"]
[WhiteFideId "12510084"]
[BlackFideId "412384"]
[WhiteElo "2735"]
[BlackElo "2560"]
[WhiteTeam "IRI"]
[BlackTeam "ENG"]
[WhiteClock "0:00:12"]
[BlackClock "0:00:00"]

1. d4 {[%clk 0:03:00]}  Nf6 {[%clk 0:03:00]} 2. Nf3 {[%clk 0:03:00]}  c5 {[%clk 0:03:00]} 3. d5 {[%clk 0:03:00]}  e6 {[%clk 0:02:59]} 4. Nc3 {[%clk 0:03:00]}  exd5 {[%clk 0:02:57]} 5. Nxd5 {[%clk 0:03:00]}  Nxd5 {[%clk 0:02:57]} 6. Qxd5 {[%clk 0:03:00]}  d6 {[%clk 0:02:57]} 7. Bg5 {[%clk 0:02:55]}  Qc7 {[%clk 0:02:48]} 8. e3 {[%clk 0:02:25]}  Be6 {[%clk 0:02:47]} 9. Bb5+ {[%clk 0:02:20]}  Nc6 {[%clk 0:02:47]} 10. Qd2 {[%clk 0:02:18]}  h6 {[%clk 0:02:46]} 11. Bf4 {[%clk 0:02:18]}  Be7 {[%clk 0:02:46]} 12. O-O {[%clk 0:02:12]}  O-O {[%clk 0:02:46]} 13. Rfd1 {[%clk 0:02:04]}  Rad8 {[%clk 0:02:44]} 14. Be2 {[%clk 0:02:00]}  Qb6 {[%clk 0:02:10]} 15. a4 {[%clk 0:01:20]}  Ne5 {[%clk 0:01:43]} 16. a5 {[%clk 0:01:11]}  Qc6 {[%clk 0:01:25]} 17. a6 {[%clk 0:00:45]}  bxa6 {[%clk 0:01:19]} 18. Qc3 {[%clk 0:00:33]}  Nxf3+ {[%clk 0:01:15]} 19. Bxf3 {[%clk 0:00:34]}  d5 {[%clk 0:01:15]} 20. Qa5 {[%clk 0:00:35]}  Bf6 {[%clk 0:01:05]} 21. c3 {[%clk 0:00:33]}  Qb5 {[%clk 0:00:49]} 22. Qxb5 {[%clk 0:00:33]}  axb5 {[%clk 0:00:49]} 23. Rxa7 {[%clk 0:00:34]}  g5 {[%clk 0:00:44]} 24. Bc7 {[%clk 0:00:24]}  Ra8 {[%clk 0:00:34]} 25. Bb6 {[%clk 0:00:23]}  c4 {[%clk 0:00:22]} 26. Bxd5 {[%clk 0:00:17]}  Bxd5 {[%clk 0:00:16]} 27. Rxd5 {[%clk 0:00:17]}  Rxa7 {[%clk 0:00:17]} 28. Bxa7 {[%clk 0:00:17]}  Ra8 {[%clk 0:00:17]} 29. Rd7 {[%clk 0:00:18]}  b4 {[%clk 0:00:18]} 30. cxb4 {[%clk 0:00:06]}  Bxb2 {[%clk 0:00:17]} 31. Rc7 {[%clk 0:00:07]}  c3 {[%clk 0:00:16]} 32. b5 {[%clk 0:00:04]}  c2 {[%clk 0:00:07]} 33. b6 {[%clk 0:00:04]}  c1=Q+ {[%clk 0:00:02]} 34. Rxc1 {[%clk 0:00:05]}  Bxc1 {[%clk 0:00:03]} 35. b7 {[%clk 0:00:06]}  Re8 {[%clk 0:00:03]} 36. b8=Q {[%clk 0:00:06]}  Rxb8 {[%clk 0:00:04]} 37. Bxb8 {[%clk 0:00:07]}  Kg7 {[%clk 0:00:03]} 38. Kf1 {[%clk 0:00:08]}  Kg6 {[%clk 0:00:03]} 39. g4 {[%clk 0:00:08]}  Ba3 {[%clk 0:00:03]} 40. h3 {[%clk 0:00:09]}  h5 {[%clk 0:00:04]} 41. Kg2 {[%clk 0:00:09]}  hxg4 {[%clk 0:00:04]} 42. hxg4 {[%clk 0:00:10]}  f5 {[%clk 0:00:05]} 43. Kf3 {[%clk 0:00:11]}  Bc5 {[%clk 0:00:04]} 44. Bc7 {[%clk 0:00:10]}  Ba7 {[%clk 0:00:04]} 45. Bd8 {[%clk 0:00:10]}  Bc5 {[%clk 0:00:04]} 46. gxf5+ {[%clk 0:00:11]}  Kxf5 {[%clk 0:00:05]} 47. e4+ {[%clk 0:00:11]}  Kg6 {[%clk 0:00:01]} 48. Kg3 {[%clk 0:00:12]}  Bb6 {[%clk 0:00:00]} 49. Bxb6 {[%clk 0:00:12]} 1-0

[Event "December 12 Late 2023"]
[Site "https://www.chess.com"]
[Date "2023.12.12"]
[Round "7"]
[White "Dyachuk, Artem"]
[Black "yaguigor"]
[Result "0-1"]
[Board "42"]
[TimeControl "180+1"]
[WhiteFideId "34107924"]
[WhiteElo "2704"]
[BlackElo "2494"]
[WhiteTeam "UKR"]
[WhiteClock "0:00:10"]
[BlackClock "0:00:15"]

1. e4 {[%clk 0:03:00]}  c5 {[%clk 0:02:59]} 2. Nf3 {[%clk 0:03:00]}  Nc6 {[%clk 0:02:59]} 3. Bb5 {[%clk 0:02:58]}  Nf6 {[%clk 0:02:58]} 4. Nc3 {[%clk 0:02:53]}  Qc7 {[%clk 0:02:57]} 5. O-O {[%clk 0:02:53]}  Nd4 {[%clk 0:02:57]} 6. Re1 {[%clk 0:02:53]}  a6 {[%clk 0:02:49]} 7. Bf1 {[%clk 0:02:50]}  e5 {[%clk 0:02:48]} 8. d3 {[%clk 0:02:50]}  d6 {[%clk 0:02:45]} 9. h3 {[%clk 0:02:38]}  Be7 {[%clk 0:02:43]} 10. Bg5 {[%clk 0:02:36]}  Be6 {[%clk 0:02:40]} 11. Nd2 {[%clk 0:02:35]}  h6 {[%clk 0:02:33]} 12. Bxf6 {[%clk 0:02:34]}  Bxf6 {[%clk 0:02:33]} 13. Nd5 {[%clk 0:02:33]}  Qd8 {[%clk 0:02:26]} 14. c3 {[%clk 0:02:27]}  Nc6 {[%clk 0:02:26]} 15. a4 {[%clk 0:02:27]}  O-O {[%clk 0:02:20]} 16. Nc4 {[%clk 0:02:26]}  Bg5 {[%clk 0:02:15]} 17. Nce3 {[%clk 0:02:09]}  Bxe3 {[%clk 0:02:08]} 18. Nxe3 {[%clk 0:02:08]}  d5 {[%clk 0:02:05]} 19. exd5 {[%clk 0:02:01]}  Bxd5 {[%clk 0:02:06]} 20. Qg4 {[%clk 0:02:00]}  Be6 {[%clk 0:02:03]} 21. Qe2 {[%clk 0:01:54]}  b5 {[%clk 0:01:59]} 22. Qf3 {[%clk 0:01:46]}  Qd7 {[%clk 0:01:53]} 23. g3 {[%clk 0:01:39]}  Rac8 {[%clk 0:01:41]} 24. Kh2 {[%clk 0:01:37]}  b4 {[%clk 0:01:34]} 25. Rad1 {[%clk 0:01:32]}  bxc3 {[%clk 0:01:30]} 26. bxc3 {[%clk 0:01:32]}  Rfd8 {[%clk 0:01:21]} 27. Bg2 {[%clk 0:01:29]}  Bb3 {[%clk 0:01:16]} 28. Rd2 {[%clk 0:01:24]}  c4 {[%clk 0:01:10]} 29. Nf5 {[%clk 0:01:11]}  Kh7 {[%clk 0:00:59]} 30. d4 {[%clk 0:01:08]}  g6 {[%clk 0:00:56]} 31. Ne3 {[%clk 0:01:07]}  exd4 {[%clk 0:00:55]} 32. Ng4 {[%clk 0:01:06]}  Qf5 {[%clk 0:00:51]} 33. Nf6+ {[%clk 0:00:40]}  Kg7 {[%clk 0:00:48]} 34. Qxf5 {[%clk 0:00:38]}  gxf5 {[%clk 0:00:48]} 35. Nh5+ {[%clk 0:00:38]}  Kf8 {[%clk 0:00:47]} 36. Bxc6 {[%clk 0:00:36]}  Rxc6 {[%clk 0:00:43]} 37. cxd4 {[%clk 0:00:32]}  c3 {[%clk 0:00:43]} 38. Rd3 {[%clk 0:00:31]}  c2 {[%clk 0:00:37]} 39. Rc1 {[%clk 0:00:21]}  Bxa4 {[%clk 0:00:35]} 40. d5 {[%clk 0:00:21]}  Rcd6 {[%clk 0:00:28]} 41. Nf4 {[%clk 0:00:21]}  Rc8 {[%clk 0:00:25]} 42. Ra3 {[%clk 0:00:16]}  Rc4 {[%clk 0:00:25]} 43. h4 {[%clk 0:00:09]}  Rd4 {[%clk 0:00:19]} 44. Rxa4 {[%clk 0:00:03]}  Rxa4 {[%clk 0:00:18]} 45. Rxc2 {[%clk 0:00:04]}  Rxf4 {[%clk 0:00:18]} 46. gxf4 {[%clk 0:00:05]}  Rxd5 {[%clk 0:00:17]} 47. Ra2 {[%clk 0:00:05]}  a5 {[%clk 0:00:17]} 48. Kg3 {[%clk 0:00:04]}  Ke7 {[%clk 0:00:16]} 49. Kf3 {[%clk 0:00:04]}  Kd6 {[%clk 0:00:17]} 50. Ke3 {[%clk 0:00:04]}  Kc6 {[%clk 0:00:17]} 51. Rc2+ {[%clk 0:00:04]}  Kb6 {[%clk 0:00:17]} 52. Rc8 {[%clk 0:00:04]}  a4 {[%clk 0:00:16]} 53. Rb8+ {[%clk 0:00:03]}  Ka7 {[%clk 0:00:16]} 54. Rb4 {[%clk 0:00:02]}  Ra5 {[%clk 0:00:16]} 55. Rb2 {[%clk 0:00:03]}  a3 {[%clk 0:00:15]} 56. Ra2 {[%clk 0:00:03]}  Kb6 {[%clk 0:00:13]} 57. Kd4 {[%clk 0:00:04]}  Kb5 {[%clk 0:00:14]} 58. Kc3 {[%clk 0:00:02]}  Ka4 {[%clk 0:00:14]} 59. Kc4 {[%clk 0:00:02]}  Ra8 {[%clk 0:00:13]} 60. f3 {[%clk 0:00:01]}  Rc8+ {[%clk 0:00:13]} 61. Kd5 {[%clk 0:00:01]}  Kb3 {[%clk 0:00:13]} 62. Ra1 {[%clk 0:00:02]}  Kb2 {[%clk 0:00:12]} 63. Rf1 {[%clk 0:00:02]}  a2 {[%clk 0:00:13]} 64. Ke5 {[%clk 0:00:02]}  a1=Q {[%clk 0:00:10]} 65. Rxa1 {[%clk 0:00:02]}  Kxa1 {[%clk 0:00:11]} 66. Kxf5 {[%clk 0:00:02]}  Rc6 {[%clk 0:00:11]} 67. Ke5 {[%clk 0:00:02]}  Kb2 {[%clk 0:00:10]} 68. Kd5 {[%clk 0:00:02]}  Ra6 {[%clk 0:00:09]} 69. Ke5 {[%clk 0:00:02]}  Kc3 {[%clk 0:00:10]} 70. f5 {[%clk 0:00:02]}  Kd3 {[%clk 0:00:10]} 71. Kf4 {[%clk 0:00:02]}  Ke2 {[%clk 0:00:09]} 72. Kg4 {[%clk 0:00:02]}  Ke3 {[%clk 0:00:09]} 73. f4 {[%clk 0:00:02]}  Ke4 {[%clk 0:00:10]} 74. Kh5 {[%clk 0:00:01]}  Rf6 {[%clk 0:00:10]} 75. Kg4 {[%clk 0:00:01]}  Rxf5 {[%clk 0:00:10]} 76. Kg3 {[%clk 0:00:02]}  Rxf4 {[%clk 0:00:11]} 77. h5 {[%clk 0:00:02]}  Kf5 {[%clk 0:00:11]} 78. Kh3 {[%clk 0:00:02]}  Kg5 {[%clk 0:00:11]} 79. Kh2 {[%clk 0:00:03]}  Rf6 {[%clk 0:00:11]} 80. Kg3 {[%clk 0:00:04]}  Kxh5 {[%clk 0:00:12]} 81. Kh3 {[%clk 0:00:04]}  Kg6 {[%clk 0:00:13]} 82. Kg3 {[%clk 0:00:05]}  Kg5 {[%clk 0:00:13]} 83. Kh3 {[%clk 0:00:05]}  h5 {[%clk 0:00:13]} 84. Kg3 {[%clk 0:00:06]}  h4+ {[%clk 0:00:14]} 85. Kh3 {[%clk 0:00:07]}  Rf3+ {[%clk 0:00:14]} 86. Kg2 {[%clk 0:00:08]}  Kg4 {[%clk 0:00:14]} 87. Kh2 {[%clk 0:00:09]}  h3 {[%clk 0:00:14]} 88. Kg1 {[%clk 0:00:09]}  Kg3 {[%clk 0:00:15]} 89. Kh1 {[%clk 0:00:10]}  Rf1# {[%clk 0:00:15]} 0-1

[Event "December 12 Late 2023"]
[Site "https://www.chess.com"]
[Date "2023.12.12"]
[Round "7"]
[White "Dubessay, Bastien"]
[Black "Rosen, Eric"]
[Result "0-1"]
[Board "43"]
[TimeControl "180+1"]
[WhiteFideId "650048"]
[BlackFideId "2032562"]
[WhiteElo "2447"]
[BlackElo "2699"]
[WhiteTeam "FRA"]
[BlackTeam "USA"]
[WhiteClock "0:00:19"]
[BlackClock "0:01:36"]

1. d4 {[%clk 0:03:00]}  d5 {[%clk 0:02:59]} 2. c4 {[%clk 0:03:00]}  e6 {[%clk 0:02:59]} 3. Nc3 {[%clk 0:03:00]}  Nf6 {[%clk 0:03:00]} 4. cxd5 {[%clk 0:03:00]}  exd5 {[%clk 0:03:00]} 5. Bg5 {[%clk 0:03:00]}  c6 {[%clk 0:03:01]} 6. e3 {[%clk 0:03:01]}  Bd6 {[%clk 0:03:00]} 7. Bd3 {[%clk 0:03:00]}  h6 {[%clk 0:03:00]} 8. Bh4 {[%clk 0:03:00]}  O-O {[%clk 0:03:01]} 9. Qc2 {[%clk 0:02:59]}  Re8 {[%clk 0:03:01]} 10. Nf3 {[%clk 0:02:59]}  Be6 {[%clk 0:03:01]} 11. O-O {[%clk 0:02:56]}  Nbd7 {[%clk 0:03:01]} 12. Rab1 {[%clk 0:02:49]}  a5 {[%clk 0:03:01]} 13. a3 {[%clk 0:02:47]}  Rc8 {[%clk 0:03:00]} 14. b4 {[%clk 0:02:46]}  axb4 {[%clk 0:03:00]} 15. axb4 {[%clk 0:02:47]}  b5 {[%clk 0:03:01]} 16. Ne2 {[%clk 0:02:28]}  Nb6 {[%clk 0:03:01]} 17. Ne5 {[%clk 0:02:28]}  Nc4 {[%clk 0:02:57]} 18. Bxc4 {[%clk 0:02:23]}  dxc4 {[%clk 0:02:42]} 19. e4 {[%clk 0:02:11]}  Be7 {[%clk 0:02:39]} 20. Rfd1 {[%clk 0:01:59]}  Qb6 {[%clk 0:02:38]} 21. f4 {[%clk 0:01:54]}  Ng4 {[%clk 0:02:13]} 22. Bxe7 {[%clk 0:01:26]}  Rxe7 {[%clk 0:02:12]} 23. Nxg4 {[%clk 0:01:11]}  Bxg4 {[%clk 0:02:11]} 24. h3 {[%clk 0:01:03]}  Bxe2 {[%clk 0:02:02]} 25. Qxe2 {[%clk 0:01:04]}  Rd8 {[%clk 0:02:03]} 26. Qf2 {[%clk 0:01:01]}  Red7 {[%clk 0:02:03]} 27. Ra1 {[%clk 0:00:21]}  Rxd4 {[%clk 0:01:51]} 28. Rxd4 {[%clk 0:00:22]}  Qxd4 {[%clk 0:01:46]} 29. Qxd4 {[%clk 0:00:21]}  Rxd4 {[%clk 0:01:47]} 30. Ra6 {[%clk 0:00:20]}  c3 {[%clk 0:01:35]} 31. Rxc6 {[%clk 0:00:19]}  Rc4 {[%clk 0:01:36]} 0-1

[Event "December 12 Late 2023"]
[Site "https://www.chess.com"]
[Date "2023.12.12"]
[Round "7"]
[White "Indjic, Aleksandar"]
[Black "Ladan, Nicholas"]
[Result "1-0"]
[Board "44"]
[TimeControl "180+1"]
[WhiteFideId "911925"]
[BlackFideId "30918855"]
[WhiteElo "2890"]
[BlackElo "2475"]
[WhiteTeam "SRB"]
[BlackTeam "USA"]
[WhiteClock "0:00:57"]
[BlackClock "0:00:00"]

1. c4 {[%clk 0:02:56]}  e5 {[%clk 0:02:59]} 2. Nf3 {[%clk 0:02:54]}  Nc6 {[%clk 0:03:00]} 3. d4 {[%clk 0:02:52]}  exd4 {[%clk 0:02:52]} 4. Nxd4 {[%clk 0:02:52]}  Qf6 {[%clk 0:02:51]} 5. Nb5 {[%clk 0:02:47]}  Bc5 {[%clk 0:02:22]} 6. e3 {[%clk 0:02:46]}  Kd8 {[%clk 0:02:07]} 7. N1c3 {[%clk 0:02:45]}  Nge7 {[%clk 0:01:59]} 8. a3 {[%clk 0:02:41]}  a6 {[%clk 0:01:56]} 9. Ne4 {[%clk 0:02:40]}  Qe5 {[%clk 0:01:49]} 10. Nxc5 {[%clk 0:02:40]}  axb5 {[%clk 0:01:45]} 11. Nd3 {[%clk 0:02:28]}  Qg5 {[%clk 0:01:34]} 12. cxb5 {[%clk 0:02:27]}  Qxb5 {[%clk 0:01:33]} 13. b4 {[%clk 0:02:28]}  Qg5 {[%clk 0:01:20]} 14. h4 {[%clk 0:02:27]}  Qg6 {[%clk 0:01:15]} 15. h5 {[%clk 0:02:26]}  Qg5 {[%clk 0:01:13]} 16. e4 {[%clk 0:02:24]}  Qf6 {[%clk 0:01:08]} 17. Bb2 {[%clk 0:02:24]}  Qe6 {[%clk 0:01:08]} 18. Nc5 {[%clk 0:02:23]}  Qh6 {[%clk 0:01:00]} 19. b5 {[%clk 0:01:54]}  Na5 {[%clk 0:00:57]} 20. Rc1 {[%clk 0:01:53]}  b6 {[%clk 0:00:54]} 21. Nd3 {[%clk 0:01:52]}  Bb7 {[%clk 0:00:45]} 22. Ne5 {[%clk 0:01:52]}  Qe6 {[%clk 0:00:43]} 23. f3 {[%clk 0:01:41]}  f6 {[%clk 0:00:35]} 24. Nc4 {[%clk 0:01:41]}  Kc8 {[%clk 0:00:27]} 25. Nxa5 {[%clk 0:01:30]}  Rxa5 {[%clk 0:00:26]} 26. Qc2 {[%clk 0:01:27]}  c5 {[%clk 0:00:11]} 27. bxc6 {[%clk 0:01:15]}  dxc6 {[%clk 0:00:10]} 28. Bc4 {[%clk 0:01:15]}  Qd7 {[%clk 0:00:06]} 29. Rd1 {[%clk 0:01:13]}  Qc7 {[%clk 0:00:05]} 30. Kf2 {[%clk 0:01:11]}  Kb8 {[%clk 0:00:05]} 31. Be6 {[%clk 0:01:10]}  Rd8 {[%clk 0:00:03]} 32. Rxd8+ {[%clk 0:01:09]}  Qxd8 {[%clk 0:00:04]} 33. Rd1 {[%clk 0:01:08]}  Qe8 {[%clk 0:00:04]} 34. Qd2 {[%clk 0:01:06]}  Nc8 {[%clk 0:00:04]} 35. Qf4+ {[%clk 0:01:05]}  Ka7 {[%clk 0:00:03]} 36. Bd7 {[%clk 0:01:01]}  Qxh5 {[%clk 0:00:03]} 37. Bxc8 {[%clk 0:01:01]}  Bxc8 {[%clk 0:00:04]} 38. Qc7+ {[%clk 0:01:00]}  Bb7 {[%clk 0:00:04]} 39. Rd7 {[%clk 0:01:00]}  Qh4+ {[%clk 0:00:00]} 40. Ke2 {[%clk 0:00:57]} 1-0

[Event "December 12 Late 2023"]
[Site "https://www.chess.com"]
[Date "2023.12.12"]
[Round "7"]
[White "Silva Lucena, Cristian"]
[Black "Thomforde-Toates, Noah"]
[Result "1/2-1/2"]
[Board "48"]
[TimeControl "180+1"]
[WhiteFideId "2232588"]
[BlackFideId "30951992"]
[WhiteElo "2549"]
[BlackElo "2688"]
[WhiteTeam "ESP"]
[BlackTeam "USA"]
[WhiteClock "0:00:27"]
[BlackClock "0:00:11"]

1. d4 {[%clk 0:02:59]}  Nf6 {[%clk 0:02:44]} 2. c4 {[%clk 0:02:59]}  g6 {[%clk 0:02:43]} 3. Nc3 {[%clk 0:02:59]}  Bg7 {[%clk 0:02:43]} 4. e4 {[%clk 0:03:00]}  d6 {[%clk 0:02:44]} 5. f3 {[%clk 0:03:00]}  O-O {[%clk 0:02:44]} 6. Be3 {[%clk 0:03:01]}  Nc6 {[%clk 0:02:45]} 7. Qd2 {[%clk 0:03:00]}  a6 {[%clk 0:02:45]} 8. Nge2 {[%clk 0:03:00]}  Na5 {[%clk 0:02:45]} 9. Nf4 {[%clk 0:03:00]}  b5 {[%clk 0:02:44]} 10. h4 {[%clk 0:03:00]}  h5 {[%clk 0:02:44]} 11. Rd1 {[%clk 0:02:44]}  Nxc4 {[%clk 0:02:41]} 12. Bxc4 {[%clk 0:02:43]}  bxc4 {[%clk 0:02:42]} 13. Qe2 {[%clk 0:02:40]}  Rb8 {[%clk 0:02:41]} 14. Rd2 {[%clk 0:02:37]}  c6 {[%clk 0:02:34]} 15. e5 {[%clk 0:02:36]}  Nd7 {[%clk 0:02:33]} 16. e6 {[%clk 0:02:35]}  fxe6 {[%clk 0:02:18]} 17. Nxe6 {[%clk 0:02:29]}  Qa5 {[%clk 0:02:17]} 18. Nxf8 {[%clk 0:02:27]}  Kxf8 {[%clk 0:02:16]} 19. Bg5 {[%clk 0:02:25]}  Nf6 {[%clk 0:02:14]} 20. O-O {[%clk 0:02:23]}  d5 {[%clk 0:02:07]} 21. Re1 {[%clk 0:02:22]}  Rb7 {[%clk 0:02:01]} 22. Qe3 {[%clk 0:02:09]}  Bf5 {[%clk 0:01:53]} 23. Bh6 {[%clk 0:02:05]}  Bxh6 {[%clk 0:01:46]} 24. Qxh6+ {[%clk 0:02:05]}  Kf7 {[%clk 0:01:47]} 25. Qf4 {[%clk 0:02:03]}  Qc7 {[%clk 0:01:41]} 26. Qxc7 {[%clk 0:01:43]}  Rxc7 {[%clk 0:01:42]} 27. Na4 {[%clk 0:01:44]}  a5 {[%clk 0:01:39]} 28. Nc5 {[%clk 0:01:43]}  Rc8 {[%clk 0:01:37]} 29. Re3 {[%clk 0:01:42]}  Rb8 {[%clk 0:01:36]} 30. Ra3 {[%clk 0:01:40]}  Rb5 {[%clk 0:01:36]} 31. Kf2 {[%clk 0:01:39]}  Ne8 {[%clk 0:01:34]} 32. Ke3 {[%clk 0:01:35]}  e5 {[%clk 0:01:33]} 33. Na4 {[%clk 0:01:23]}  exd4+ {[%clk 0:01:31]} 34. Kxd4 {[%clk 0:01:20]}  Nc7 {[%clk 0:01:31]} 35. Nc3 {[%clk 0:01:19]}  Ne6+ {[%clk 0:01:30]} 36. Ke5 {[%clk 0:01:17]}  Rc5 {[%clk 0:01:25]} 37. Na4 {[%clk 0:01:13]}  Rb5 {[%clk 0:01:21]} 38. Kd6 {[%clk 0:01:13]}  d4 {[%clk 0:01:18]} 39. Kxc6 {[%clk 0:01:11]}  Rb8 {[%clk 0:01:16]} 40. Nb6 {[%clk 0:01:05]}  d3 {[%clk 0:00:59]} 41. Nxc4 {[%clk 0:00:55]}  Rc8+ {[%clk 0:00:59]} 42. Kb5 {[%clk 0:00:51]}  Nd4+ {[%clk 0:00:58]} 43. Kxa5 {[%clk 0:00:49]}  Rxc4 {[%clk 0:00:58]} 44. Rc3 {[%clk 0:00:50]}  Rxc3 {[%clk 0:00:54]} 45. bxc3 {[%clk 0:00:51]}  Nc2 {[%clk 0:00:54]} 46. Kb6 {[%clk 0:00:45]}  Ne3 {[%clk 0:00:53]} 47. Kc5 {[%clk 0:00:43]}  Ke6 {[%clk 0:00:44]} 48. a4 {[%clk 0:00:42]}  Nd5 {[%clk 0:00:44]} 49. c4 {[%clk 0:00:39]}  Nc3 {[%clk 0:00:41]} 50. a5 {[%clk 0:00:38]}  Kd7 {[%clk 0:00:42]} 51. g4 {[%clk 0:00:37]}  hxg4 {[%clk 0:00:41]} 52. fxg4 {[%clk 0:00:38]}  Ne4+ {[%clk 0:00:26]} 53. Kd4 {[%clk 0:00:35]}  Nxd2 {[%clk 0:00:25]} 54. gxf5 {[%clk 0:00:36]}  gxf5 {[%clk 0:00:24]} 55. Kxd3 {[%clk 0:00:36]}  Nb3 {[%clk 0:00:24]} 56. h5 {[%clk 0:00:34]}  Ke6 {[%clk 0:00:19]} 57. h6 {[%clk 0:00:32]}  Kf6 {[%clk 0:00:19]} 58. Ke3 {[%clk 0:00:28]}  Nxa5 {[%clk 0:00:19]} 59. c5 {[%clk 0:00:27]}  Kg6 {[%clk 0:00:16]} 60. Kf4 {[%clk 0:00:27]}  Nc6 {[%clk 0:00:14]} 61. h7 {[%clk 0:00:27]}  Kxh7 {[%clk 0:00:12]} 62. Kxf5 {[%clk 0:00:28]}  Kg7 {[%clk 0:00:12]} 63. Ke6 {[%clk 0:00:28]}  Nb4 {[%clk 0:00:13]} 64. Kd6 {[%clk 0:00:27]}  Kf7 {[%clk 0:00:13]} 65. Kc7 {[%clk 0:00:28]}  Na6+ {[%clk 0:00:13]} 66. Kb6 {[%clk 0:00:27]}  Nxc5 {[%clk 0:00:11]} 1/2-1/2